[Event "Live Chess"]
[Site "Chess.com"]
[Date "2023.05.20"]
[Round "-"]
[White "wadsy27"]
[Black "omisoc"]
[Result "1-0"]
[WhiteElo "2586"]
[BlackElo "2206"]
[TimeControl "300"]
[EndTime "12:06:38 PDT"]
[Termination "wadsy27 won on time"]

1. Nf3 {[%clk 0:04:56.3]} 1... d5 {[%clk 0:04:55]} 2. g3 {[%clk 0:04:54.8]} 2...
Nf6 {[%clk 0:04:50.6]} 3. Bg2 {[%clk 0:04:42.8]} 3... Bf5 {[%clk 0:04:49.1]} 4.
c4 {[%clk 0:04:41.8]} 4... e6 {[%clk 0:04:46.7]} 5. Qb3 {[%clk 0:04:36.1]} 5...
Qc8 {[%clk 0:04:42.1]} 6. cxd5 {[%clk 0:04:30.9]} 6... exd5 {[%clk 0:04:39.3]}
7. O-O {[%clk 0:04:29.6]} 7... c6 {[%clk 0:04:35.2]} 8. Nc3 {[%clk 0:04:27.5]}
8... Be7 {[%clk 0:04:32.9]} 9. d3 {[%clk 0:04:23.1]} 9... O-O {[%clk 0:04:30.6]}
10. Nh4 {[%clk 0:04:16.1]} 10... Be6 {[%clk 0:04:28.6]} 11. Qc2 {[%clk
0:04:14.8]} 11... d4 {[%clk 0:04:22.4]} 12. Nb1 {[%clk 0:04:12.3]} 12... Bd5
{[%clk 0:04:16.9]} 13. Nf3 {[%clk 0:04:10.1]} 13... c5 {[%clk 0:04:15.4]} 14.
Nbd2 {[%clk 0:04:02.5]} 14... Nc6 {[%clk 0:04:14.1]} 15. a3 {[%clk 0:04:01.5]}
15... a5 {[%clk 0:04:12.3]} 16. Nc4 {[%clk 0:03:55.9]} 16... Qd8 {[%clk
0:03:52.1]} 17. Bf4 {[%clk 0:03:48.8]} 17... b5 {[%clk 0:03:39]} 18. Nce5 {[%clk
0:03:46.8]} 18... a4 {[%clk 0:03:26.8]} 19. Nxc6 {[%clk 0:03:23.1]} 19... Bxc6
{[%clk 0:03:26.7]} 20. Be5 {[%clk 0:03:20.2]} 20... Qd5 {[%clk 0:03:09.4]} 21.
Rac1 {[%clk 0:03:06.4]} 21... Nd7 {[%clk 0:02:48.6]} 22. Bxd4 {[%clk 0:03:04.6]}
22... Rac8 {[%clk 0:02:27.1]} 23. Be3 {[%clk 0:02:54.6]} 23... h6 {[%clk
0:01:59.8]} 24. Rfd1 {[%clk 0:02:47.8]} 24... Ne5 {[%clk 0:01:55.5]} 25. Ne1
{[%clk 0:02:40.7]} 25... Qe6 {[%clk 0:01:52.8]} 26. Qd2 {[%clk 0:02:18.8]} 26...
Bxg2 {[%clk 0:01:42.6]} 27. Kxg2 {[%clk 0:02:17.6]} 27... Rfd8 {[%clk
0:01:39.6]} 28. Bf4 {[%clk 0:02:09.4]} 28... Ng6 {[%clk 0:01:35.5]} 29. Nf3
{[%clk 0:02:06.6]} 29... Nxf4+ {[%clk 0:01:31.7]} 30. Qxf4 {[%clk 0:02:05.6]}
30... Bf6 {[%clk 0:01:29]} 31. Rd2 {[%clk 0:01:56.9]} 31... c4 {[%clk
0:01:15.6]} 32. dxc4 {[%clk 0:01:53.5]} 32... Rxd2 {[%clk 0:01:13.7]} 33. Qxd2
{[%clk 0:01:52.5]} 33... Rxc4 {[%clk 0:01:08]} 34. Rxc4 {[%clk 0:01:47]} 34...
Qxc4 {[%clk 0:01:07]} 35. e3 {[%clk 0:01:46.1]} 35... Qc6 {[%clk 0:01:02.7]} 36.
Qe2 {[%clk 0:01:31.7]} 36... g5 {[%clk 0:00:50.7]} 37. e4 {[%clk 0:01:25]} 37...
Qc4 {[%clk 0:00:43.8]} 38. Qxc4 {[%clk 0:01:07.4]} 38... bxc4 {[%clk 0:00:42.1]}
39. Nd2 {[%clk 0:00:58.3]} 39... Bxb2 {[%clk 0:00:24.8]} 40. Nxc4 {[%clk
0:00:54.7]} 40... Bd4 {[%clk 0:00:24.1]} 41. f4 {[%clk 0:00:52]} 41... g4 {[%clk
0:00:20.1]} 42. h3 {[%clk 0:00:43.1]} 42... h5 {[%clk 0:00:19.1]} 43. hxg4
{[%clk 0:00:42.4]} 43... hxg4 {[%clk 0:00:19]} 44. Kf1 {[%clk 0:00:41.4]} 44...
Kf8 {[%clk 0:00:14.5]} 45. Ke2 {[%clk 0:00:40.6]} 45... Ke7 {[%clk 0:00:14.1]}
46. Ne3 {[%clk 0:00:39.8]} 46... Bc5 {[%clk 0:00:11.4]} 47. Nxg4 {[%clk
0:00:29.4]} 47... Bxa3 {[%clk 0:00:10.3]} 48. Kd3 {[%clk 0:00:28.4]} 48... Bc1
{[%clk 0:00:05.3]} 49. Kc2 {[%clk 0:00:27.1]} 49... Ba3 {[%clk 0:00:02]} 50. Ne3
{[%clk 0:00:26.8]} 1-0

[Event "Live Chess"]
[Site "Chess.com"]
[Date "2023.05.20"]
[Round "-"]
[White "Sidharth2008"]
[Black "AdamOwls"]
[Result "0-1"]
[WhiteElo "1101"]
[BlackElo "1930"]
[TimeControl "300"]
[EndTime "12:06:40 PDT"]
[Termination "AdamOwls won by resignation"]

1. e4 {[%clk 0:04:58.2]} 1... c6 {[%clk 0:04:58.9]} 2. Nf3 {[%clk 0:04:56.8]}
2... d5 {[%clk 0:04:58.8]} 3. exd5 {[%clk 0:04:54.9]} 3... cxd5 {[%clk
0:04:58.7]} 4. d4 {[%clk 0:04:53.8]} 4... Nf6 {[%clk 0:04:57.7]} 5. Bg5 {[%clk
0:04:51.3]} 5... Nc6 {[%clk 0:04:55.7]} 6. Bxf6 {[%clk 0:04:50.2]} 6... gxf6
{[%clk 0:04:53]} 7. c4 {[%clk 0:04:47.9]} 7... dxc4 {[%clk 0:04:48.9]} 8. Bxc4
{[%clk 0:04:45.2]} 8... Bf5 {[%clk 0:04:46.3]} 9. Nc3 {[%clk 0:04:41.3]} 9... e6
{[%clk 0:04:44.9]} 10. O-O {[%clk 0:04:39]} 10... Bd6 {[%clk 0:04:43.7]} 11. Nh4
{[%clk 0:04:34.3]} 11... Bg6 {[%clk 0:04:41.6]} 12. d5 {[%clk 0:04:22]} 12...
O-O {[%clk 0:04:34]} 13. dxe6 {[%clk 0:04:16.5]} 13... fxe6 {[%clk 0:04:32.5]}
14. Bxe6+ {[%clk 0:04:14.6]} 14... Kg7 {[%clk 0:04:31.7]} 15. Qg4 {[%clk
0:04:05.9]} 15... Ne5 {[%clk 0:04:25.9]} 16. Qd1 {[%clk 0:03:44.9]} 16... Qb6
{[%clk 0:04:19.1]} 17. Bb3 {[%clk 0:03:40.6]} 17... Rad8 {[%clk 0:04:16.8]} 18.
Nd5 {[%clk 0:03:32.9]} 18... Qa5 {[%clk 0:04:02.2]} 19. Qe1 {[%clk 0:03:28]}
19... Qc5 {[%clk 0:03:35.3]} 20. Rc1 {[%clk 0:03:23.5]} 20... Qd4 {[%clk
0:03:33.1]} 21. Nf3 {[%clk 0:02:48.6]} 21... Nxf3+ {[%clk 0:03:27.1]} 22. gxf3
{[%clk 0:02:46.1]} 22... Bb8 {[%clk 0:02:54.1]} 23. Qc3 {[%clk 0:02:36]} 23...
Rxd5 {[%clk 0:02:43.8]} 24. Bxd5 {[%clk 0:02:30.7]} 24... Qxd5 {[%clk
0:02:43.7]} 25. b3 {[%clk 0:02:25.2]} 25... Qg5+ {[%clk 0:02:30.8]} 26. Kh1
{[%clk 0:02:21.2]} 26... Qh4 {[%clk 0:02:30.3]} 0-1

[Event "Live Chess"]
[Site "Chess.com"]
[Date "2023.05.20"]
[Round "-"]
[White "flyingpuffins"]
[Black "CocheseUK"]
[Result "1-0"]
[WhiteElo "1964"]
[BlackElo "1036"]
[TimeControl "300"]
[EndTime "12:06:46 PDT"]
[Termination "flyingpuffins won by resignation"]

1. e4 {[%clk 0:04:59]} 1... e5 {[%clk 0:04:58.1]} 2. Nc3 {[%clk 0:04:58]} 2...
Nf6 {[%clk 0:04:52.9]} 3. Bc4 {[%clk 0:04:54.3]} 3... Be7 {[%clk 0:04:27.7]} 4.
d3 {[%clk 0:04:50.6]} 4... O-O {[%clk 0:04:26.5]} 5. f4 {[%clk 0:04:48.4]} 5...
exf4 {[%clk 0:04:21.5]} 6. Bxf4 {[%clk 0:04:48.3]} 6... d6 {[%clk 0:04:10.2]} 7.
Nf3 {[%clk 0:04:46.4]} 7... Bg4 {[%clk 0:04:07]} 8. O-O {[%clk 0:04:44.2]} 8...
Nbd7 {[%clk 0:03:57.8]} 9. h3 {[%clk 0:04:42.7]} 9... Bh5 {[%clk 0:03:49.2]} 10.
g4 {[%clk 0:04:35.5]} 10... Nxg4 {[%clk 0:03:39.3]} 11. hxg4 {[%clk 0:04:32.5]}
11... Bxg4 {[%clk 0:03:38.1]} 12. Qe2 {[%clk 0:04:22.9]} 12... h5 {[%clk
0:03:25]} 13. Qg2 {[%clk 0:04:19.4]} 13... g5 {[%clk 0:03:13.2]} 14. Be3 {[%clk
0:04:10]} 14... Ne5 {[%clk 0:02:57.7]} 15. Nxe5 {[%clk 0:04:05]} 15... dxe5
{[%clk 0:02:54.5]} 16. Nd5 {[%clk 0:04:03.7]} 16... f5 {[%clk 0:02:44.1]} 17.
exf5 {[%clk 0:03:59.2]} 17... Kh7 {[%clk 0:02:35.2]} 18. Nxe7 {[%clk 0:03:52.9]}
18... Qxe7 {[%clk 0:02:32.5]} 19. Rf2 {[%clk 0:03:31.1]} 19... Rxf5 {[%clk
0:02:28.2]} 20. Rxf5 {[%clk 0:03:29.6]} 20... Bxf5 {[%clk 0:02:22.7]} 21. Qxg5
{[%clk 0:03:28.3]} 21... Qxg5+ {[%clk 0:02:20.8]} 22. Bxg5 {[%clk 0:03:28.2]}
22... Rg8 {[%clk 0:02:18.9]} 23. Bxg8+ {[%clk 0:03:24.9]} 23... Kxg8 {[%clk
0:02:17.3]} 24. Rf1 {[%clk 0:03:23.1]} 1-0

[Event "Live Chess"]
[Site "Chess.com"]
[Date "2023.05.20"]
[Round "-"]
[White "domrobson"]
[Black "MarkLim1"]
[Result "0-1"]
[WhiteElo "1761"]
[BlackElo "1668"]
[TimeControl "300"]
[EndTime "12:06:46 PDT"]
[Termination "MarkLim1 won by resignation"]

1. d4 {[%clk 0:04:59.1]} 1... Nf6 {[%clk 0:04:58.9]} 2. c4 {[%clk 0:04:57.9]}
2... e6 {[%clk 0:04:58.2]} 3. Nf3 {[%clk 0:04:55.9]} 3... d5 {[%clk 0:04:57.3]}
4. Nc3 {[%clk 0:04:55]} 4... c5 {[%clk 0:04:56.5]} 5. cxd5 {[%clk 0:04:53.8]}
5... Nxd5 {[%clk 0:04:55.5]} 6. e4 {[%clk 0:04:51.8]} 6... Nxc3 {[%clk
0:04:54.8]} 7. bxc3 {[%clk 0:04:50.7]} 7... cxd4 {[%clk 0:04:54.4]} 8. Qxd4
{[%clk 0:04:48.3]} 8... Qxd4 {[%clk 0:04:51.5]} 9. cxd4 {[%clk 0:04:47.2]} 9...
Bb4+ {[%clk 0:04:51]} 10. Bd2 {[%clk 0:04:46.4]} 10... Bxd2+ {[%clk 0:04:49.7]}
11. Kxd2 {[%clk 0:04:45.6]} 11... Ke7 {[%clk 0:04:46.1]} 12. Bc4 {[%clk
0:04:37.9]} 12... Rd8 {[%clk 0:04:44.6]} 13. Rhd1 {[%clk 0:04:36.5]} 13... Nc6
{[%clk 0:04:43.7]} 14. Ke3 {[%clk 0:04:34.6]} 14... b6 {[%clk 0:04:42.7]} 15. d5
{[%clk 0:04:33.3]} 15... Na5 {[%clk 0:04:40.9]} 16. Bb5 {[%clk 0:04:28.3]} 16...
Bb7 {[%clk 0:04:38.7]} 17. dxe6 {[%clk 0:04:25.7]} 17... fxe6 {[%clk 0:04:34.7]}
18. Ng5 {[%clk 0:04:21.2]} 18... h6 {[%clk 0:04:32.8]} 19. Nf3 {[%clk
0:04:18.1]} 19... Rac8 {[%clk 0:04:28.8]} 20. Rac1 {[%clk 0:04:16.1]} 20... Rxd1
{[%clk 0:04:20.4]} 21. Rxd1 {[%clk 0:04:13.7]} 21... Nc4+ {[%clk 0:04:19.3]} 22.
Ke2 {[%clk 0:04:05.6]} 22... Nd6 {[%clk 0:04:12.6]} 23. Bd3 {[%clk 0:03:55.6]}
23... Bxe4 {[%clk 0:04:07.4]} 24. Bxe4 {[%clk 0:03:54.4]} 24... Nxe4 {[%clk
0:04:06.4]} 25. Rd4 {[%clk 0:03:51.5]} 25... Nc3+ {[%clk 0:04:03]} 26. Kd3
{[%clk 0:03:49.3]} 26... Nxa2 {[%clk 0:04:00.9]} 27. Ra4 {[%clk 0:03:48.9]}
27... Nc1+ {[%clk 0:03:57.9]} 28. Kd2 {[%clk 0:03:46.4]} 28... Nb3+ {[%clk
0:03:52.7]} 29. Ke3 {[%clk 0:03:43.9]} 29... a5 {[%clk 0:03:47.3]} 0-1

[Event "Live Chess"]
[Site "Chess.com"]
[Date "2023.05.20"]
[Round "-"]
[White "HoarseyHorsey"]
[Black "Greenbecker"]
[Result "1-0"]
[WhiteElo "1388"]
[BlackElo "1626"]
[TimeControl "300"]
[EndTime "12:06:49 PDT"]
[Termination "HoarseyHorsey won by resignation"]

1. d4 {[%clk 0:04:58.6]} 1... e6 {[%clk 0:04:58.4]} 2. c4 {[%clk 0:04:57.6]}
2... d5 {[%clk 0:04:57]} 3. Nc3 {[%clk 0:04:54.9]} 3... Nf6 {[%clk 0:04:55.6]}
4. cxd5 {[%clk 0:04:54]} 4... Nxd5 {[%clk 0:04:54.2]} 5. e4 {[%clk 0:04:52.9]}
5... Nxc3 {[%clk 0:04:52.4]} 6. bxc3 {[%clk 0:04:52.8]} 6... c5 {[%clk
0:04:50.7]} 7. Nf3 {[%clk 0:04:51.8]} 7... cxd4 {[%clk 0:04:49.6]} 8. cxd4
{[%clk 0:04:51.7]} 8... Bb4+ {[%clk 0:04:48.2]} 9. Bd2 {[%clk 0:04:50.5]} 9...
Bxd2+ {[%clk 0:04:47.1]} 10. Qxd2 {[%clk 0:04:50.4]} 10... O-O {[%clk
0:04:46.2]} 11. Bc4 {[%clk 0:04:49.1]} 11... Nc6 {[%clk 0:04:45]} 12. O-O {[%clk
0:04:47.1]} 12... Bd7 {[%clk 0:04:42.6]} 13. Rad1 {[%clk 0:04:43.3]} 13... Rc8
{[%clk 0:04:41.3]} 14. Rfe1 {[%clk 0:04:39.6]} 14... Ne7 {[%clk 0:04:38.9]} 15.
Bb3 {[%clk 0:04:32.2]} 15... Re8 {[%clk 0:04:32.4]} 16. d5 {[%clk 0:04:23.1]}
16... exd5 {[%clk 0:04:30.8]} 17. exd5 {[%clk 0:04:22.1]} 17... Bg4 {[%clk
0:04:23.9]} 18. Qd3 {[%clk 0:04:17.7]} 18... Qd6 {[%clk 0:04:13.5]} 19. h3
{[%clk 0:04:13.9]} 19... Bf5 {[%clk 0:04:05]} 20. Qe3 {[%clk 0:04:05.1]} 20...
h6 {[%clk 0:04:01.6]} 21. Qxa7 {[%clk 0:04:01.4]} 21... Qb8 {[%clk 0:03:28.1]}
22. Qd4 {[%clk 0:03:50]} 22... Red8 {[%clk 0:03:24]} 23. Nh4 {[%clk 0:03:32.8]}
23... Bh7 {[%clk 0:03:06.8]} 24. Rxe7 {[%clk 0:03:29.2]} 24... Rd6 {[%clk
0:02:56.4]} 25. Nf3 {[%clk 0:03:19.7]} 25... Rcd8 {[%clk 0:02:49.2]} 26. Qc5
{[%clk 0:03:11.5]} 26... Be4 {[%clk 0:02:40.5]} 27. Qc7 {[%clk 0:02:59.8]} 27...
Qxc7 {[%clk 0:02:33]} 28. Rxc7 {[%clk 0:02:58.1]} 28... Bxd5 {[%clk 0:02:24.9]}
29. Bxd5 {[%clk 0:02:55.9]} 29... Rxd5 {[%clk 0:02:23.4]} 30. Rxd5 {[%clk
0:02:55.1]} 30... Rxd5 {[%clk 0:02:20.5]} 31. Rxb7 {[%clk 0:02:54.4]} 31... Ra5
{[%clk 0:02:19.7]} 32. Rb2 {[%clk 0:02:52.9]} 32... f6 {[%clk 0:02:17]} 33. Kh2
{[%clk 0:02:49.2]} 33... Kf7 {[%clk 0:02:15.5]} 34. Kg3 {[%clk 0:02:48.2]} 34...
Ra4 {[%clk 0:02:12.9]} 35. Nd2 {[%clk 0:02:45.5]} 35... g5 {[%clk 0:02:10]} 36.
Kf3 {[%clk 0:02:42.4]} 36... f5 {[%clk 0:02:06.2]} 37. Ke3 {[%clk 0:02:38.7]}
37... Ke6 {[%clk 0:02:01.3]} 38. Nb1 {[%clk 0:02:29.4]} 38... f4+ {[%clk
0:01:55.7]} 39. Kf3 {[%clk 0:02:24.9]} 39... Kf5 {[%clk 0:01:49.9]} 40. Nc3
{[%clk 0:02:23]} 40... Ra3 {[%clk 0:01:46.7]} 41. Rb3 {[%clk 0:02:11.7]} 41...
Ra6 {[%clk 0:01:39.7]} 42. Rb5+ {[%clk 0:01:58.3]} 42... Kg6 {[%clk 0:01:38.1]}
43. a4 {[%clk 0:01:56]} 43... h5 {[%clk 0:01:36]} 44. g3 {[%clk 0:01:44.2]}
44... Rc6 {[%clk 0:01:31.7]} 45. Rb3 {[%clk 0:01:37.2]} 45... fxg3 {[%clk
0:01:29.1]} 46. fxg3 {[%clk 0:01:35.6]} 46... Kf5 {[%clk 0:01:22.6]} 47. Rb5+
{[%clk 0:01:30.9]} 47... Kg6 {[%clk 0:01:21.3]} 48. Rb3 {[%clk 0:01:20.7]} 48...
Kf5 {[%clk 0:01:19.5]} 49. Rb5+ {[%clk 0:01:20]} 49... Kg6 {[%clk 0:01:18.5]}
50. Nd5 {[%clk 0:01:15.6]} 50... Kf7 {[%clk 0:01:10.3]} 51. a5 {[%clk
0:01:08.3]} 51... Ra6 {[%clk 0:01:05]} 52. g4 {[%clk 0:01:02]} 52... hxg4+
{[%clk 0:01:03.5]} 53. hxg4 {[%clk 0:01:01.3]} 53... Kg7 {[%clk 0:01:00.6]} 54.
Ke4 {[%clk 0:00:56.5]} 54... Kh7 {[%clk 0:00:51.8]} 55. Kf5 {[%clk 0:00:55.1]}
55... Ra7 {[%clk 0:00:49.6]} 56. Kxg5 {[%clk 0:00:52.6]} 56... Rg7+ {[%clk
0:00:48.7]} 57. Kf4 {[%clk 0:00:51.5]} 57... Rf7+ {[%clk 0:00:48]} 58. Kg3
{[%clk 0:00:50.4]} 58... Rd7 {[%clk 0:00:46.3]} 59. a6 {[%clk 0:00:47.4]} 59...
Kg7 {[%clk 0:00:44]} 60. Rb7 {[%clk 0:00:45.6]} 1-0

[Event "Live Chess"]
[Site "Chess.com"]
[Date "2023.05.20"]
[Round "-"]
[White "TheSmoulderingMaster"]
[Black "KeithArkell"]
[Result "0-1"]
[WhiteElo "1735"]
[BlackElo "2610"]
[TimeControl "300"]
[EndTime "12:06:58 PDT"]
[Termination "KeithArkell won by checkmate"]

1. e4 {[%clk 0:04:59.2]} 1... c6 {[%clk 0:04:58.9]} 2. d4 {[%clk 0:04:58]} 2...
d5 {[%clk 0:04:58.2]} 3. Nd2 {[%clk 0:04:55.4]} 3... dxe4 {[%clk 0:04:57.2]} 4.
Nxe4 {[%clk 0:04:53.6]} 4... Nd7 {[%clk 0:04:56.6]} 5. Nf3 {[%clk 0:04:51.9]}
5... Ngf6 {[%clk 0:04:55.8]} 6. Nxf6+ {[%clk 0:04:49.4]} 6... Nxf6 {[%clk
0:04:55]} 7. Bc4 {[%clk 0:04:42.9]} 7... Bf5 {[%clk 0:04:53.1]} 8. c3 {[%clk
0:04:41.3]} 8... e6 {[%clk 0:04:52.5]} 9. O-O {[%clk 0:04:40]} 9... Be7 {[%clk
0:04:51.7]} 10. Bg5 {[%clk 0:04:37.6]} 10... O-O {[%clk 0:04:50.7]} 11. Ne5
{[%clk 0:04:35.6]} 11... Nd5 {[%clk 0:04:49.5]} 12. Bxe7 {[%clk 0:04:33.5]}
12... Qxe7 {[%clk 0:04:48.6]} 13. Bd3 {[%clk 0:04:31.1]} 13... Bxd3 {[%clk
0:04:47.4]} 14. Qxd3 {[%clk 0:04:30]} 14... Rfd8 {[%clk 0:04:46.3]} 15. Rfe1
{[%clk 0:04:25.2]} 15... c5 {[%clk 0:04:44.9]} 16. c4 {[%clk 0:04:19.1]} 16...
Nb4 {[%clk 0:04:43.4]} 17. Qb3 {[%clk 0:04:16.2]} 17... Rxd4 {[%clk 0:04:41.9]}
18. a3 {[%clk 0:04:13.1]} 18... Nc6 {[%clk 0:04:38.8]} 19. Nf3 {[%clk
0:04:08.1]} 19... Rd7 {[%clk 0:04:36.8]} 20. Qc2 {[%clk 0:04:03.2]} 20... Rad8
{[%clk 0:04:34.1]} 21. h4 {[%clk 0:04:00.7]} 21... h6 {[%clk 0:04:33.4]} 22. Qc3
{[%clk 0:03:51.2]} 22... Nd4 {[%clk 0:04:30.9]} 23. Ne5 {[%clk 0:03:47.3]} 23...
Rd6 {[%clk 0:04:29.5]} 24. Qa5 {[%clk 0:03:42.3]} 24... b6 {[%clk 0:04:27.8]}
25. Qc3 {[%clk 0:03:38.2]} 25... Qxh4 {[%clk 0:04:25.7]} 26. Re3 {[%clk
0:03:28.7]} 26... Nf5 {[%clk 0:04:20.6]} 27. g3 {[%clk 0:03:13.4]} 27... Rd1+
{[%clk 0:04:17]} 28. Rxd1 {[%clk 0:03:09.1]} 28... Rxd1+ {[%clk 0:04:15.6]} 29.
Kg2 {[%clk 0:03:08.2]} 29... Qh1# {[%clk 0:04:14.2]} 0-1

[Event "Live Chess"]
[Site "Chess.com"]
[Date "2023.05.20"]
[Round "-"]
[White "Conradical12"]
[Black "Bob2pen"]
[Result "1-0"]
[WhiteElo "1555"]
[BlackElo "1792"]
[TimeControl "300"]
[EndTime "12:06:59 PDT"]
[Termination "Conradical12 won by checkmate"]

1. e4 {[%clk 0:04:58.6]} 1... e6 {[%clk 0:04:58.8]} 2. d4 {[%clk 0:04:57.2]}
2... d5 {[%clk 0:04:58]} 3. Nc3 {[%clk 0:04:55.9]} 3... Bb4 {[%clk 0:04:56.5]}
4. e5 {[%clk 0:04:54.4]} 4... Ne7 {[%clk 0:04:55.2]} 5. Nf3 {[%clk 0:04:50.9]}
5... c5 {[%clk 0:04:53.1]} 6. Be3 {[%clk 0:04:48.1]} 6... Nbc6 {[%clk
0:04:50.4]} 7. Bb5 {[%clk 0:04:47.6]} 7... Bd7 {[%clk 0:04:48.5]} 8. O-O {[%clk
0:04:45.4]} 8... Bxc3 {[%clk 0:04:43.7]} 9. bxc3 {[%clk 0:04:43.5]} 9... Nxe5
{[%clk 0:04:39.5]} 10. Nxe5 {[%clk 0:04:38.1]} 10... Bxb5 {[%clk 0:04:36.3]} 11.
Rb1 {[%clk 0:04:36]} 11... Bxf1 {[%clk 0:04:30.4]} 12. Qxf1 {[%clk 0:04:29.6]}
12... O-O {[%clk 0:04:27.3]} 13. Rxb7 {[%clk 0:04:27.3]} 13... cxd4 {[%clk
0:04:23.3]} 14. Bxd4 {[%clk 0:04:25.2]} 14... Ng6 {[%clk 0:04:21.3]} 15. Nd7
{[%clk 0:04:22.1]} 15... Qc8 {[%clk 0:04:11.3]} 16. Qb5 {[%clk 0:04:16.2]} 16...
Rd8 {[%clk 0:04:06.6]} 17. Bxa7 {[%clk 0:03:57.9]} 17... Qxc3 {[%clk 0:03:55.8]}
18. h3 {[%clk 0:03:47]} 18... Qxc2 {[%clk 0:03:44.8]} 19. Rb8 {[%clk 0:03:42.8]}
19... Raxb8 {[%clk 0:03:40.6]} 20. Nxb8 {[%clk 0:03:36.7]} 20... Qxa2 {[%clk
0:03:36.9]} 21. Nc6 {[%clk 0:03:31.7]} 21... Ra8 {[%clk 0:03:23.1]} 22. Qb7
{[%clk 0:03:28.2]} 22... Rf8 {[%clk 0:03:20]} 23. Bc5 {[%clk 0:03:24.3]} 23...
Qc4 {[%clk 0:03:10.5]} 24. Bxf8 {[%clk 0:03:14.8]} 24... Nxf8 {[%clk 0:03:08.9]}
25. Qc8 {[%clk 0:03:13.6]} 25... Qc1+ {[%clk 0:02:58.1]} 26. Kh2 {[%clk
0:03:11.8]} 26... Qc5 {[%clk 0:02:55.1]} 27. Qe8 {[%clk 0:03:02.3]} 27... Qd6+
{[%clk 0:02:48.5]} 28. g3 {[%clk 0:02:59.7]} 28... Qd7 {[%clk 0:02:44.2]} 29.
Ne7+ {[%clk 0:02:57.1]} 29... Kh8 {[%clk 0:02:28.5]} 30. Qxf8# {[%clk
0:02:55.2]} 1-0

[Event "Live Chess"]
[Site "Chess.com"]
[Date "2023.05.20"]
[Round "-"]
[White "djw60"]
[Black "WelshTiger"]
[Result "0-1"]
[WhiteElo "2113"]
[BlackElo "2402"]
[TimeControl "300"]
[EndTime "12:07:00 PDT"]
[Termination "WelshTiger won on time"]

1. b3 {[%clk 0:04:57.8]} 1... d5 {[%clk 0:04:52.7]} 2. Bb2 {[%clk 0:04:56.3]}
2... c5 {[%clk 0:04:52.2]} 3. e3 {[%clk 0:04:55.3]} 3... Nc6 {[%clk 0:04:51.6]}
4. Bb5 {[%clk 0:04:53.4]} 4... Qb6 {[%clk 0:04:50.3]} 5. a4 {[%clk 0:04:40.9]}
5... a6 {[%clk 0:04:48.6]} 6. Bxc6+ {[%clk 0:04:38.9]} 6... Qxc6 {[%clk
0:04:48.5]} 7. Nf3 {[%clk 0:04:37.4]} 7... Nf6 {[%clk 0:04:45.8]} 8. O-O {[%clk
0:04:35.4]} 8... e6 {[%clk 0:04:40.1]} 9. Ne5 {[%clk 0:04:28.3]} 9... Qc7 {[%clk
0:04:39.2]} 10. f4 {[%clk 0:04:27.1]} 10... Bd6 {[%clk 0:04:36.1]} 11. d3 {[%clk
0:04:21.8]} 11... O-O {[%clk 0:04:27.1]} 12. Nd2 {[%clk 0:04:19.4]} 12... Nd7
{[%clk 0:04:24.6]} 13. Ndf3 {[%clk 0:04:04.3]} 13... f6 {[%clk 0:04:21.9]} 14.
Nxd7 {[%clk 0:04:00.9]} 14... Bxd7 {[%clk 0:04:21.8]} 15. g3 {[%clk 0:03:54.7]}
15... Rae8 {[%clk 0:04:20.7]} 16. e4 {[%clk 0:03:50.8]} 16... dxe4 {[%clk
0:04:10.8]} 17. dxe4 {[%clk 0:03:49.2]} 17... Bc6 {[%clk 0:04:10.7]} 18. Qe2
{[%clk 0:03:44.9]} 18... f5 {[%clk 0:04:04.7]} 19. e5 {[%clk 0:03:41.2]} 19...
Be7 {[%clk 0:04:03.6]} 20. a5 {[%clk 0:03:31.9]} 20... Rd8 {[%clk 0:04:01.7]}
21. Bc3 {[%clk 0:03:24.5]} 21... Bd5 {[%clk 0:03:56.8]} 22. Rfd1 {[%clk
0:03:20.5]} 22... Qc6 {[%clk 0:03:54.8]} 23. Kf2 {[%clk 0:03:18.8]} 23... Be4
{[%clk 0:03:45.4]} 24. Rxd8 {[%clk 0:03:11.8]} 24... Rxd8 {[%clk 0:03:45.3]} 25.
Rd1 {[%clk 0:03:09.3]} 25... Rxd1 {[%clk 0:03:38.3]} 26. Qxd1 {[%clk 0:03:08]}
26... c4 {[%clk 0:03:38.1]} 27. b4 {[%clk 0:03:05.1]} 27... Qa4 {[%clk
0:03:23.5]} 28. Ne1 {[%clk 0:02:47.6]} 28... Bxb4 {[%clk 0:03:19.6]} 29. Qd8+
{[%clk 0:02:44.5]} 29... Bf8 {[%clk 0:03:14.4]} 30. Bd4 {[%clk 0:02:29]} 30...
Qc6 {[%clk 0:03:07.5]} 31. c3 {[%clk 0:02:17.3]} 31... h6 {[%clk 0:03:06.2]} 32.
h4 {[%clk 0:02:13.9]} 32... Qb5 {[%clk 0:02:36.2]} 33. Ke3 {[%clk 0:01:59]}
33... Bd5 {[%clk 0:02:27.4]} 34. Nc2 {[%clk 0:01:52.3]} 34... Be4 {[%clk
0:02:18.1]} 35. Nb4 {[%clk 0:01:50.1]} 35... Kf7 {[%clk 0:02:09.1]} 36. Qc7+
{[%clk 0:01:47]} 36... Be7 {[%clk 0:02:08.4]} 37. h5 {[%clk 0:01:33.5]} 37...
Kf8 {[%clk 0:01:59.8]} 38. Qb8+ {[%clk 0:01:29]} 38... Qe8 {[%clk 0:01:58]} 39.
Qc7 {[%clk 0:01:19.6]} 39... Qd8 {[%clk 0:01:48.2]} 40. Qxd8+ {[%clk 0:01:15]}
40... Bxd8 {[%clk 0:01:48.1]} 41. Bc5+ {[%clk 0:01:14.2]} 41... Kf7 {[%clk
0:01:46.9]} 42. Kd4 {[%clk 0:01:13]} 42... Bxa5 {[%clk 0:01:45.5]} 43. Kxc4
{[%clk 0:01:11.3]} 43... Bf3 {[%clk 0:01:37.4]} 44. Bf2 {[%clk 0:01:07.1]} 44...
Bxh5 {[%clk 0:01:33.9]} 45. Kc5 {[%clk 0:01:02.1]} 45... Bf3 {[%clk 0:01:32.2]}
46. Kd6 {[%clk 0:00:59]} 46... g5 {[%clk 0:01:22.2]} 47. fxg5 {[%clk 0:00:55.4]}
47... hxg5 {[%clk 0:01:22.1]} 48. Be3 {[%clk 0:00:53.9]} 48... g4 {[%clk
0:01:16.2]} 49. Bf4 {[%clk 0:00:51.8]} 49... Bb6 {[%clk 0:01:07.8]} 50. Nd3
{[%clk 0:00:49.7]} 50... a5 {[%clk 0:01:06.6]} 51. Nc5 {[%clk 0:00:48.2]} 51...
Bd5 {[%clk 0:00:57.1]} 52. Nd7 {[%clk 0:00:45.9]} 52... Bd8 {[%clk 0:00:52.5]}
53. Kc5 {[%clk 0:00:39.9]} 53... a4 {[%clk 0:00:48.1]} 54. Kb4 {[%clk
0:00:35.3]} 54... Bb3 {[%clk 0:00:47.4]} 55. Be3 {[%clk 0:00:30.2]} 55... Bc7
{[%clk 0:00:40.5]} 56. Bd4 {[%clk 0:00:23.9]} 56... Ke7 {[%clk 0:00:39.5]} 57.
Nc5 {[%clk 0:00:22.7]} 57... Bc2 {[%clk 0:00:39]} 58. Nxa4 {[%clk 0:00:21.5]}
58... Bxa4 {[%clk 0:00:37.2]} 59. Kxa4 {[%clk 0:00:20.3]} 59... Kd7 {[%clk
0:00:37.1]} 60. Kb5 {[%clk 0:00:19.4]} 60... Bd8 {[%clk 0:00:36.5]} 61. Bb6
{[%clk 0:00:16.9]} 61... Be7 {[%clk 0:00:35.7]} 62. Bd4 {[%clk 0:00:15.3]} 62...
Bd8 {[%clk 0:00:32.3]} 63. c4 {[%clk 0:00:14.5]} 63... Bc7 {[%clk 0:00:31.3]}
64. c5 {[%clk 0:00:13.6]} 64... Bd8 {[%clk 0:00:30.1]} 65. Be3 {[%clk
0:00:12.1]} 65... Be7 {[%clk 0:00:27.9]} 66. Bd4 {[%clk 0:00:11.2]} 66... Kc7
{[%clk 0:00:27.3]} 67. Be3 {[%clk 0:00:10.4]} 67... Kd7 {[%clk 0:00:26.3]} 68.
Bd4 {[%clk 0:00:09.7]} 68... Bd8 {[%clk 0:00:26]} 69. Be3 {[%clk 0:00:08.9]}
69... Kc8 {[%clk 0:00:24.7]} 70. Bd4 {[%clk 0:00:08.1]} 70... Kc7 {[%clk
0:00:24.1]} 71. Be3 {[%clk 0:00:07.2]} 71... Be7 {[%clk 0:00:23.7]} 72. Bd4
{[%clk 0:00:05.8]} 72... Bg5 {[%clk 0:00:23.1]} 73. Bf2 {[%clk 0:00:04.6]} 73...
f4 {[%clk 0:00:22.1]} 74. gxf4 {[%clk 0:00:03.4]} 74... Bxf4 {[%clk 0:00:22]}
75. Bd4 {[%clk 0:00:02.4]} 75... g3 {[%clk 0:00:21.1]} 76. Kc4 {[%clk
0:00:01.4]} 76... g2 {[%clk 0:00:20.4]} 77. Kd3 {[%clk 0:00:00.5]} 77... Bh2
{[%clk 0:00:19.3]} 0-1